[Event "ESP-ch Rapid 2018"]
[Site "Linares"]
[Date "2018.08.19"]
[Round "5"]
[White "Camacho Collados, Marcos"]
[Black "Sanjuan Garcia, Miguel"]
[Result "1-0"]
[ECO "A48"]
[WhiteElo "2393"]
[BlackElo "2115"]
[Annotator "NA"]
[PlyCount "41"]
[EventDate "2018.08.19"]
[EventType "team-tourn"]
[EventCountry "ESP"]
[SourceTitle "playchess.com"]
[Source "ChessBase"]
[SourceQuality "1"]
[TimeControl "900+5"]

1. d4 {[%emt 0:00:00]} Nf6 {[%emt 0:00:00]} 2. Nf3 {[%emt 0:00:00]} g6 {[%emt 0:00:01]} 3. Bg5 {[%emt 0:00:04]} Bg7 {[%emt 0:00:01]} 4. Nbd2 {[%emt 0:00:01]} d5 {[%emt 0:00:03]} 5. e3 {[%emt 0:00:02]} O-O {[%emt 0:00:03]} 6. Bd3 {[%emt 0:00:01]} c5 {[%emt 0:00:02]} 7. c3 {[%emt 0:00:02]} Nc6 {[%emt 0:00:01]} 8. O-O {[%emt 0:00:08]} b6 {[%emt 0:00:01]} 9. Qe2 {[%emt 0:00:15]} Bb7 {[%emt 0:00:04]} 10. dxc5 {[%emt 0:00:19]} bxc5 {[%emt 0:00:02]} 11. e4 {[%emt 0:00:02]} e5 {[%emt 0:03:01]} 12. exd5 {[%emt 0:00:27]} Qxd5 {[%emt 0:00:02]} 13. Rfd1 {[%emt 0:01:04]} Qe6 {[%emt 0:00:35]} 14. Ne4 {[%emt 0:01:52]} Nxe4 {[%emt 0:00:10]} 15. Bxe4 {[%emt 0:00:02]} Na5 {[%emt 0:02:45]} 16. Nd2 {[%emt 0:00:28]} Rab8 {[%emt 0:01:14]} 17. Bxb7 {[%emt 0:00:06]} Rxb7 {[%emt 0:00:15]} 18. Ne4 {[%emt 0:00:04]} Qb6 {[%emt 0:02:57]} 19. Rab1 {[%emt 0:00:30]} Rc7 {[%emt 0:01:22]} 20. Bd8 {[%emt 0:00:05]} f5 {[%emt 0:00:30]} 21. Ng5 {[%emt 0:00:39]} 1-0

[Event "ESP-ch Rapid 2018"]
[Site "Linares"]
[Date "2018.08.19"]
[Round "5"]
[White "Suarez Uriel, Adrian"]
[Black "Cuevas Fernandez, Jose Alberto"]
[Result "0-1"]
[ECO "B40"]
[WhiteElo "2391"]
[BlackElo "2147"]
[Annotator "NA"]
[PlyCount "62"]
[EventDate "2018.08.19"]
[EventType "team-tourn"]
[EventCountry "ESP"]
[SourceTitle "playchess.com"]
[Source "ChessBase"]
[SourceQuality "1"]
[TimeControl "900+5"]

1. e4 {[%emt 0:00:00]} c5 {[%emt 0:00:00]} 2. Nf3 {[%emt 0:00:00]} e6 {[%emt 0:00:00]} 3. b3 {[%emt 0:00:00]} b6 {[%emt 0:00:02]} 4. Bb2 {[%emt 0:00:01]} Bb7 {[%emt 0:00:01]} 5. Qe2 {[%emt 0:00:01]} Nc6 {[%emt 0:00:08]} 6. Nc3 {[%emt 0:00:02]} a6 {[%emt 0:00:15]} 7. O-O-O {[%emt 0:00:08]} Nd4 {[%emt 0:00:16]} 8. Qe3 {[%emt 0:00:27]} Nxf3 {[%emt 0:00:18]} 9. gxf3 {[%emt 0:00:01]} Qc7 {[%emt 0:01:15]} 10. Kb1 {[%emt 0:00:27]} Nf6 {[%emt 0:00:11]} 11. Ne2 {[%emt 0:00:15]} d5 {[%emt 0:00:45]} 12. Bxf6 {[%emt 0:01:42]} gxf6 {[%emt 0:00:02]} 13. exd5 {[%emt 0:00:10]} Bxd5 {[%emt 0:00:25]} 14. Nf4 {[%emt 0:00:01]} Bb7 {[%emt 0:00:22]} 15. Nh5 {[%emt 0:02:17]} O-O-O {[%emt 0:00:33]} 16. Nxf6 {[%emt 0:00:03]} Bg7 {[%emt 0:00:21]} 17. Qg5 {[%emt 0:00:20]} Bxf6 {[%emt 0:00:59]} 18. Qxf6 {[%emt 0:00:01]} Rhg8 {[%emt 0:00:01]} 19. Bd3 {[%emt 0:00:05]} Rg2 {[%emt 0:01:02]} 20. Rhg1 {[%emt 0:00:06]} Rxf2 {[%emt 0:00:07]} 21. Rg3 {[%emt 0:00:47]} b5 {[%emt 0:01:22]} 22. Bxh7 {[%emt 0:01:48]} c4 {[%emt 0:01:14]} 23. bxc4 {[%emt 0:02:28]} Qxc4 {[%emt 0:00:19]} 24. f4 {[%emt 0:00:28]} Rxf4 {[%emt 0:01:52]} 25. Qe5 {[%emt 0:01:44]} Qc7 {[%emt 0:00:10]} 26. Rc3 {[%emt 0:00:22]} Rc4 {[%emt 0:00:02]} 27. Rxc4 {[%emt 0:00:14]} Qxc4 {[%emt 0:00:09]} 28. Bd3 {[%emt 0:01:51]} Qb4+ {[%emt 0:00:42]} 29. Ka1 {[%emt 0:00:13]} Bd5 {[%emt 0:00:40]} 30. Rf1 {[%emt 0:00:27]} Qxd2 {[%emt 0:00:37]} 31. Rxf7 {[%emt 0:00:27]} Qc1# {[%emt 0:00:03] Rf1 Qd2} 0-1

[Event "ESP-ch Rapid 2018"]
[Site "Linares"]
[Date "2018.08.19"]
[Round "5"]
[White "Vega Gutierrez, Sabrina"]
[Black "Buendia Pinar, Alvaro"]
[Result "0-1"]
[ECO "B12"]
[WhiteElo "2390"]
[BlackElo "2278"]
[Annotator "NA"]
[PlyCount "110"]
[EventDate "2018.08.19"]
[EventType "team-tourn"]
[EventCountry "ESP"]
[SourceTitle "playchess.com"]
[Source "ChessBase"]
[SourceQuality "1"]
[TimeControl "900+5"]

1. e4 {[%emt 0:00:00]} c6 {[%emt 0:00:00]} 2. d4 {[%emt 0:00:00]} d5 {[%emt 0:00:00]} 3. e5 {[%emt 0:00:02]} c5 {[%emt 0:00:00]} 4. dxc5 {[%emt 0:00:04]} e6 {[%emt 0:00:03]} 5. a3 {[%emt 0:01:38]} Bxc5 {[%emt 0:00:11]} 6. b4 {[%emt 0:00:06]} Bb6 {[%emt 0:00:04]} 7. Bb2 {[%emt 0:00:13]} Ne7 {[%emt 0:00:44]} 8. Nf3 {[%emt 0:00:05]} Nbc6 {[%emt 0:00:11]} 9. Bd3 {[%emt 0:00:09]} Ng6 {[%emt 0:00:13]} 10. O-O {[%emt 0:00:15]} Bc7 {[%emt 0:00:12]} 11. Re1 {[%emt 0:00:12]} O-O {[%emt 0:00:34]} 12. Nbd2 {[%emt 0:00:18]} b6 {[%emt 0:02:15]} 13. c4 {[%emt 0:01:47]} Nce7 {[%emt 0:01:02]} 14. cxd5 {[%emt 0:01:14]} Nxd5 {[%emt 0:00:06]} 15. Be4 {[%emt 0:00:02]} Bb7 {[%emt 0:00:17]} 16. Rc1 {[%emt 0:00:59]} Qe7 {[%emt 0:00:18]} 17. h4 {[%emt 0:00:54]} Rac8 {[%emt 0:02:00]} 18. g3 {[%emt 0:00:37]} Rfd8 {[%emt 0:00:37]} 19. h5 {[%emt 0:00:40]} Nf8 {[%emt 0:00:07]} 20. Qe2 {[%emt 0:00:28]} Bb8 {[%emt 0:01:04]} 21. Nb3 {[%emt 0:00:14]} h6 {[%emt 0:01:55]} 22. Nbd4 {[%emt 0:00:46]} Qd7 {[%emt 0:00:50]} 23. b5 {[%emt 0:02:14]} Rxc1 {[%emt 0:00:54]} 24. Rxc1 {[%emt 0:00:04]} Rc8 {[%emt 0:00:03]} 25. Rxc8 {[%emt 0:00:30]} Qxc8 {[%emt 0:00:05]} 26. a4 {[%emt 0:00:32]} Nd7 {[%emt 0:00:57]} 27. Bc2 {[%emt 0:00:05]} Nb4 {[%emt 0:00:25]} 28. Bb1 {[%emt 0:00:13]} Nf8 {[%emt 0:00:24]} 29. Qd2 {[%emt 0:00:58]} Nd5 {[%emt 0:00:18]} 30. Qd3 {[%emt 0:00:59]} Nb4 {[%emt 0:00:04]} 31. Qb3 {[%emt 0:00:24]} Nd5 {[%emt 0:00:08]} 32. Be4 {[%emt 0:00:10]} Ne7 {[%emt 0:00:09]} 33. Bxb7 {[%emt 0:00:18]} Qxb7 {[%emt 0:00:01]} 34. Ba3 {[%emt 0:00:03]} Nd5 {[%emt 0:01:06]} 35. Qc4 {[%emt 0:00:07]} Nd7 {[%emt 0:00:20]} 36. Qc6 {[%emt 0:00:09]} Qxc6 {[%emt 0:00:14]} 37. Nxc6 {[%emt 0:00:16]} f6 {[%emt 0:00:01]} 38. Bd6 {[%emt 0:00:16]} Bxd6 {[%emt 0:00:07]} 39. exd6 {[%emt 0:00:02]} Nc3 {[%emt 0:00:04]} 40. Nxa7 {[%emt 0:00:06]} Nxa4 {[%emt 0:00:02]} 41. Nd4 {[%emt 0:00:09]} Kf7 {[%emt 0:00:01]} 42. f4 {[%emt 0:00:02]} e5 {[%emt 0:00:04]} 43. Ndc6 {[%emt 0:00:06]} Ke6 {[%emt 0:00:11]} 44. Nc8 {[%emt 0:00:02]} Nc3 {[%emt 0:00:03]} 45. N6a7 {[%emt 0:00:11]} exf4 {[%emt 0:00:03]} 46. gxf4 {[%emt 0:00:01]} Ne4 {[%emt 0:00:03]} 47. Kg2 {[%emt 0:00:02]} Nxd6 {[%emt 0:00:02]} 48. Nxd6 {[%emt 0:00:03]} Kxd6 {[%emt 0:00:01]} 49. Kf3 {[%emt 0:00:01]} f5 {[%emt 0:00:06]} 50. Ke3 {[%emt 0:00:02]} Kc5 {[%emt 0:00:04]} 51. Kd3 {[%emt 0:00:01]} Nf6 {[%emt 0:00:01]} 52. Nc8 {[%emt 0:00:13]} Nxh5 {[%emt 0:00:04]} 53. Ke3 Nf6 {[%emt 0:00:09]} 54. Kf3 {[%emt 0:00:10]} Nd5 {[%emt 0:00:03]} 55. Kg3 {[%emt 0:00:04]} g5 {[%emt 0:00:01]} 0-1

[Event "ESP-ch Rapid 2018"]
[Site "Linares"]
[Date "2018.08.19"]
[Round "5"]
[White "Campos Gambuti, Luis Maria"]
[Black "Garcia Cuenca, Victor"]
[Result "1/2-1/2"]
[ECO "A46"]
[WhiteElo "2382"]
[BlackElo "2351"]
[Annotator "NA"]
[PlyCount "112"]
[EventDate "2018.08.19"]
[EventType "team-tourn"]
[EventCountry "ESP"]
[SourceTitle "playchess.com"]
[Source "ChessBase"]
[SourceQuality "1"]
[TimeControl "900+5"]

1. d4 {[%emt 0:00:00]} Nf6 {[%emt 0:00:00]} 2. Nf3 {[%emt 0:00:00]} c5 {[%emt 0:00:00]} 3. c3 {[%emt 0:00:03]} e6 {[%emt 0:00:03]} 4. Bf4 {[%emt 0:00:11]} b6 {[%emt 0:00:12]} 5. e3 {[%emt 0:00:03]} Bb7 {[%emt 0:00:02]} 6. Nbd2 {[%emt 0:00:11]} Be7 {[%emt 0:00:05]} 7. h3 {[%emt 0:00:07]} O-O {[%emt 0:00:15]} 8. Bd3 {[%emt 0:00:03]} d5 {[%emt 0:00:18]} 9. Ne5 {[%emt 0:00:28]} Nc6 {[%emt 0:00:17]} 10. Qb1 {[%emt 0:00:55]} h6 {[%emt 0:01:49]} 11. O-O {[%emt 0:01:59]} Nxe5 {[%emt 0:00:27]} 12. Bxe5 {[%emt 0:00:25]} a5 {[%emt 0:03:19]} 13. a4 {[%emt 0:00:31]} Ba6 {[%emt 0:00:08]} 14. Bxa6 {[%emt 0:00:48]} Rxa6 {[%emt 0:00:02]} 15. Qd3 {[%emt 0:00:15]} Ra7 {[%emt 0:01:08]} 16. Qb5 {[%emt 0:00:17]} Ne8 {[%emt 0:00:52]} 17. Rfd1 {[%emt 0:00:58]} Bd6 {[%emt 0:00:32]} 18. c4 {[%emt 0:00:28]} Bxe5 {[%emt 0:02:12]} 19. dxe5 {[%emt 0:00:03]} Qb8 {[%emt 0:00:37]} 20. cxd5 {[%emt 0:00:31]} exd5 {[%emt 0:00:29]} 21. Nf3 {[%emt 0:00:10]} Nc7 {[%emt 0:00:05]} 22. Qc6 {[%emt 0:00:37]} Rd8 {[%emt 0:00:01]} 23. Ra3 {[%emt 0:00:27]} Qb7 {[%emt 0:00:01]} 24. Qxb7 {[%emt 0:00:20]} Rxb7 {[%emt 0:00:01]} 25. Rc3 {[%emt 0:00:11]} Na6 {[%emt 0:00:06]} 26. Nd2 {[%emt 0:01:53]} Rbd7 {[%emt 0:00:28]} 27. Nf3 {[%emt 0:01:00]} Kf8 {[%emt 0:00:06]} 28. g4 {[%emt 0:00:02]} Ke7 {[%emt 0:00:02]} 29. Rcd3 {[%emt 0:00:12]} Ke6 {[%emt 0:00:07]} 30. R3d2 {[%emt 0:00:01]} Nb4 {[%emt 0:00:04]} 31. Nh4 {[%emt 0:00:33]} Kxe5 {[%emt 0:00:31]} 32. f4+ {[%emt 0:00:09]} Kf6 {[%emt 0:00:02]} 33. e4 {[%emt 0:00:20]} g6 {[%emt 0:00:32]} 34. e5+ {[%emt 0:00:16]} Kg7 {[%emt 0:00:01]} 35. Nf3 {[%emt 0:00:13]} d4 {[%emt 0:00:02]} 36. Kf2 {[%emt 0:00:08]} Nd5 {[%emt 0:00:08]} 37. Kg3 {[%emt 0:00:03]} Ne3 {[%emt 0:00:05]} 38. Rc1 {[%emt 0:00:10]} c4 {[%emt 0:00:17]} 39. Kf2 {[%emt 0:00:16]} Kf8 {[%emt 0:01:25]} 40. Rxd4 {[%emt 0:00:35]} Nxg4+ {[%emt 0:00:10]} 41. hxg4 {[%emt 0:00:02]} Rxd4 {[%emt 0:00:01]} 42. Nxd4 {[%emt 0:00:01]} Rxd4 {[%emt 0:00:01]} 43. Ke3 {[%emt 0:00:02]} Rd3+ {[%emt 0:00:02]} 44. Ke4 {[%emt 0:00:00]} Rb3 {[%emt 0:00:10]} 45. Rxc4 {[%emt 0:00:02]} Rxb2 {[%emt 0:00:01]} 46. Rc8+ {[%emt 0:00:03]} Ke7 {[%emt 0:00:03]} 47. Rc7+ {[%emt 0:00:01]} Ke8 {[%emt 0:00:01]} 48. f5 {[%emt 0:00:04]} Rb4+ {[%emt 0:00:13]} 49. Kd5 {[%emt 0:00:02]} Rxg4 {[%emt 0:00:02]} 50. f6 {[%emt 0:00:08]} Rg1 {[%emt 0:00:17]} 51. Re7+ {[%emt 0:00:02]} Kf8 {[%emt 0:00:01]} 52. Rb7 {[%emt 0:00:01]} Rd1+ {[%emt 0:00:18]} 53. Kc6 {[%emt 0:00:04]} Rc1+ {[%emt 0:00:02]} 54. Kd7 {[%emt 0:00:24]} Rd1+ {[%emt 0:00:01]} 55. Kc6 {[%emt 0:00:01]} Rc1+ {[%emt 0:00:02]} 56. Kd7 {[%emt 0:00:12]} Rd1+ 1/2-1/2

[Event "ESP-ch Rapid 2018"]
[Site "Linares"]
[Date "2018.08.19"]
[Round "5"]
[White "Domingo Nunez, Alejandro"]
[Black "Ladron De Guevara Pinto, Paolo"]
[Result "0-1"]
[ECO "A07"]
[WhiteElo "2373"]
[BlackElo "2424"]
[Annotator "NA"]
[PlyCount "64"]
[EventDate "2018.08.19"]
[EventType "team-tourn"]
[EventCountry "ESP"]
[SourceTitle "playchess.com"]
[Source "ChessBase"]
[SourceQuality "1"]
[TimeControl "900+5"]

1. Nf3 {[%emt 0:00:00]} d5 {[%emt 0:00:00]} 2. g3 {[%emt 0:00:00]} Nf6 {[%emt 0:00:03]} 3. Bg2 {[%emt 0:00:00]} c6 {[%emt 0:00:02]} 4. O-O {[%emt 0:00:02]} Bg4 {[%emt 0:00:02]} 5. b3 {[%emt 0:00:13]} Nbd7 {[%emt 0:00:07]} 6. Bb2 {[%emt 0:00:01]} e6 {[%emt 0:00:03]} 7. c4 {[%emt 0:00:03]} Be7 {[%emt 0:00:11]} 8. d3 {[%emt 0:00:08]} O-O {[%emt 0:00:04]} 9. Nbd2 {[%emt 0:00:05]} a5 {[%emt 0:00:01]} 10. a3 {[%emt 0:00:23]} Qb6 {[%emt 0:00:31]} 11. Qc2 {[%emt 0:00:29]} Bh5 {[%emt 0:00:34]} 12. e4 {[%emt 0:00:23]} dxe4 {[%emt 0:00:28]} 13. dxe4 {[%emt 0:00:03]} Rfd8 {[%emt 0:00:06]} 14. h3 {[%emt 0:01:28]} Nc5 {[%emt 0:00:11]} 15. g4 {[%emt 0:00:05]} Bg6 {[%emt 0:00:02]} 16. Bd4 {[%emt 0:00:17]} Qc7 {[%emt 0:00:50]} 17. Rfe1 {[%emt 0:01:04]} Nfd7 {[%emt 0:00:20]} 18. Qc3 {[%emt 0:01:11]} f6 {[%emt 0:00:01]} 19. Nh4 {[%emt 0:03:33]} Bf7 {[%emt 0:00:11]} 20. b4 {[%emt 0:00:22]} Na4 {[%emt 0:00:59]} 21. Qb3 {[%emt 0:00:16]} Ndc5 {[%emt 0:00:45]} 22. Qe3 {[%emt 0:00:50]} Na6 {[%emt 0:00:00]} 23. e5 {[%emt 0:00:27]} Rxd4 {[%emt 0:00:04]} 24. Qxd4 {[%emt 0:00:10]} fxe5 {[%emt 0:00:01]} 25. Qxe5 {[%emt 0:00:01]} Bxh4 {[%emt 0:00:19]} 26. g5 {[%emt 0:00:28]} h6 {[%emt 0:00:25]} 27. Nf3 {[%emt 0:00:40]} Bxg5 {[%emt 0:00:24]} 28. Nxg5 {[%emt 0:00:07]} hxg5 {[%emt 0:00:01]} 29. b5 {[%emt 0:00:30]} cxb5 {[%emt 0:00:22]} 30. cxb5 {[%emt 0:00:21]} Qxe5 {[%emt 0:00:02]} 31. Rxe5 {[%emt 0:00:01]} N6c5 {[%emt 0:00:01]} 32. Rc1 {[%emt 0:00:03]} Nd3 {[%emt 0:00:04]} 0-1

[Event "ESP-ch Rapid 2018"]
[Site "Linares"]
[Date "2018.08.19"]
[Round "5"]
[White "Lianes Garcia, Marcos"]
[Black "Cuenca Jimenez, Jose Fernando"]
[Result "1-0"]
[ECO "C41"]
[WhiteElo "2340"]
[BlackElo "2506"]
[Annotator "ChessBase"]
[PlyCount "55"]
[EventDate "2018.08.19"]
[EventType "team-tourn"]
[EventCountry "ESP"]
[SourceTitle "playchess.com"]
[Source "ChessBase"]
[SourceQuality "1"]
[TimeControl "900+5"]

1. e4 {[%emt 0:00:00]} d6 {[%emt 0:00:00]} 2. d4 {[%emt 0:00:01]} Nf6 {[%emt 0:00:00]} 3. Nc3 {[%emt 0:00:06]} e5 {[%emt 0:00:00]} 4. Nf3 {[%emt 0:00:07]} Nbd7 {[%emt 0:00:00]} 5. Bc4 {[%emt 0:00:06]} Be7 {[%emt 0:00:00]} 6. dxe5 {[%emt 0:00:01]} dxe5 {[%emt 0:00:30]} 7. Bxf7+ {[%emt 0:00:01]} Kxf7 {[%emt 0:00:03]} 8. Ng5+ {[%emt 0:00:01]} Kg8 {[%emt 0:00:03]} 9. Ne6 {[%emt 0:00:02]} Qe8 {[%emt 0:00:01]} 10. Nxc7 {[%emt 0:00:02]} Qg6 {[%emt 0:00:19]} 11. Nxa8 {[%emt 0:00:03]} Qxg2 {[%emt 0:00:37]} 12. Rf1 {[%emt 0:00:01]} Nf8 {[%emt 0:08:07]} 13. Nc7 {[%emt 0:01:43]} h6 {[%emt 0:04:58]} 14. Qe2 {[%emt 0:00:23]} Bh3 {[%emt 0:01:07]} 15. Be3 {[%emt 0:00:25]} Qxh2 {[%emt 0:00:13]} 16. O-O-O Bxf1 {[%emt 0:00:01]} 17. Rxf1 {[%emt 0:00:54]} Ng6 {[%emt 0:00:01]} 18. Bxa7 {[%emt 0:00:33]} Kh7 {[%emt 0:00:01]} 19. Kb1 {[%emt 0:00:29]} Nf4 {[%emt 0:00:10]} 20. Qb5 {[%emt 0:00:00]} Qg2 {[%emt 0:00:04]} 21. Re1 {[%emt 0:00:10]} Ng6 {[%emt 0:00:15]} 22. Qxb7 {[%emt 0:00:09]} h5 {[%emt 0:00:08]} 23. N7d5 {[%emt 0:00:07]} Nxd5 {[%emt 0:00:02]} 24. Nxd5 {[%emt 0:00:01]} Bg5 {[%emt 0:00:06]} 25. a4 {[%emt 0:03:29]} h4 {[%emt 0:00:00]} 26. f4 {[%emt 0:00:44]} exf4 {[%emt 0:00:07]} 27. Rg1 {[%emt 0:00:04]} Qxe4 {[%emt 0:00:09]} 28. Nf6+ {[%emt 0:00:02]} 1-0

[Event "ESP-ch Rapid 2018"]
[Site "Linares"]
[Date "2018.08.19"]
[Round "5"]
[White "Blanco Acevedo, Cristobal Jose"]
[Black "Alvarez Serrano, Carlos"]
[Result "1-0"]
[ECO "A14"]
[WhiteElo "2336"]
[BlackElo "2225"]
[Annotator "NA"]
[PlyCount "59"]
[EventDate "2018.08.19"]
[EventType "team-tourn"]
[EventCountry "ESP"]
[SourceTitle "playchess.com"]
[Source "ChessBase"]
[SourceQuality "1"]
[TimeControl "900+5"]

1. g3 {[%emt 0:00:00]} Nf6 {[%emt 0:00:00]} 2. Bg2 {[%emt 0:00:00]} d5 {[%emt 0:00:00]} 3. c4 {[%emt 0:00:05]} e6 {[%emt 0:00:00]} 4. Nf3 {[%emt 0:00:10]} Be7 {[%emt 0:00:00]} 5. O-O {[%emt 0:00:05]} O-O {[%emt 0:00:02]} 6. b3 {[%emt 0:00:01]} d4 {[%emt 0:00:01]} 7. d3 {[%emt 0:00:22]} c5 {[%emt 0:00:01]} 8. e4 {[%emt 0:00:46]} Nc6 {[%emt 0:00:24]} 9. e5 {[%emt 0:00:04]} Nd7 {[%emt 0:00:16]} 10. Re1 {[%emt 0:00:03]} f6 {[%emt 0:00:15]} 11. exf6 {[%emt 0:00:06]} Nxf6 {[%emt 0:00:02]} 12. Nbd2 {[%emt 0:00:31]} Qc7 {[%emt 0:00:24]} 13. Ng5 {[%emt 0:00:54]} e5 {[%emt 0:00:42]} 14. Nde4 {[%emt 0:00:03]} Nxe4 {[%emt 0:00:32]} 15. Bxe4 {[%emt 0:00:15]} Bxg5 {[%emt 0:00:07]} 16. Bxg5 {[%emt 0:00:03]} Bf5 {[%emt 0:00:11]} 17. Bd5+ {[%emt 0:00:29]} Kh8 {[%emt 0:00:03]} 18. a3 {[%emt 0:00:48]} Rae8 {[%emt 0:00:12]} 19. Ra2 {[%emt 0:00:35]} Be6 {[%emt 0:00:36]} 20. Bg2 {[%emt 0:00:12]} Qf7 {[%emt 0:00:08]} 21. Rf1 {[%emt 0:01:42]} Bf5 {[%emt 0:00:08]} 22. f4 {[%emt 0:02:18]} Qg6 {[%emt 0:00:24]} 23. Rd2 {[%emt 0:00:04]} e4 {[%emt 0:00:03]} 24. g4 {[%emt 0:00:18]} Bxg4 {[%emt 0:00:09]} 25. Qxg4 {[%emt 0:00:02]} h6 {[%emt 0:00:00]} 26. Bxe4 {[%emt 0:01:05]} Rxe4 {[%emt 0:00:02]} 27. dxe4 {[%emt 0:00:02]} hxg5 {[%emt 0:00:17]} 28. f5 {[%emt 0:00:15]} Qf6 {[%emt 0:00:17]} 29. Rg2 {[%emt 0:00:04]} Re8 {[%emt 0:00:04]} 30. Qh5+ {[%emt 0:00:04]} 1-0

[Event "ESP-ch Rapid 2018"]
[Site "Linares"]
[Date "2018.08.19"]
[Round "5"]
[White "Martin Rueda, Daniel"]
[Black "Tejedor Fuente, Enrique"]
[Result "1-0"]
[ECO "A45"]
[WhiteElo "2267"]
[BlackElo "2408"]
[Annotator "NA"]
[PlyCount "59"]
[EventDate "2018.08.19"]
[EventType "team-tourn"]
[EventCountry "ESP"]
[SourceTitle "playchess.com"]
[Source "ChessBase"]
[SourceQuality "1"]
[TimeControl "900+5"]

1. d4 {[%emt 0:00:00]} Nf6 {[%emt 0:02:58]} 2. Bg5 {[%emt 0:02:55]} Ne4 {[%emt 0:00:33]} 3. Bf4 {[%emt 0:00:02]} d5 {[%emt 0:00:06]} 4. e3 {[%emt 0:00:02]} c5 {[%emt 0:00:31]} 5. Bd3 {[%emt 0:00:09]} cxd4 {[%emt 0:00:39]} 6. Bxe4 {[%emt 0:01:10]} dxe4 {[%emt 0:00:07]} 7. exd4 {[%emt 0:00:13]} Nc6 {[%emt 0:00:22]} 8. Ne2 {[%emt 0:00:04]} Bg4 {[%emt 0:00:32]} 9. Nbc3 {[%emt 0:00:15]} f5 {[%emt 0:01:35]} 10. Qd2 {[%emt 0:03:26]} e5 {[%emt 0:01:04]} 11. dxe5 {[%emt 0:01:17]} Qxd2+ {[%emt 0:00:03]} 12. Bxd2 {[%emt 0:00:28]} Nxe5 {[%emt 0:01:07]} 13. Nb5 {[%emt 0:00:40]} Rc8 {[%emt 0:00:43]} 14. Bc3 {[%emt 0:00:42]} a6 {[%emt 0:01:51]} 15. Bxe5 {[%emt 0:00:26]} axb5 {[%emt 0:00:04]} 16. c3 {[%emt 0:01:08]} b4 {[%emt 0:01:56]} 17. Nf4 {[%emt 0:00:23]} bxc3 {[%emt 0:01:38]} 18. bxc3 {[%emt 0:00:07]} Kf7 {[%emt 0:00:22]} 19. h3 {[%emt 0:00:17]} Re8 {[%emt 0:00:00]} 20. Bd4 {[%emt 0:00:50]} Bd6 {[%emt 0:00:01]} 21. hxg4 {[%emt 0:00:01]} Bxf4 {[%emt 0:00:02]} 22. gxf5 {[%emt 0:00:09]} e3 {[%emt 0:00:05]} 23. Rb1 {[%emt 0:00:57]} exf2+ {[%emt 0:00:01]} 24. Kxf2 {[%emt 0:00:02]} Re7 {[%emt 0:00:01]} 25. Rb6 {[%emt 0:00:31]} Bc7 {[%emt 0:00:22]} 26. Rb5 {[%emt 0:00:12]} Ra8 {[%emt 0:00:08]} 27. Rxh7 {[%emt 0:00:11]} Kg8 {[%emt 0:00:01]} 28. f6 {[%emt 0:00:23]} Rf8 {[%emt 0:00:19]} 29. Rbh5 {[%emt 0:00:14]} Ree8 {[%emt 0:00:08]} 30. Rxg7# 1-0

[Event "ESP-ch Rapid 2018"]
[Site "Linares"]
[Date "2018.08.19"]
[Round "5"]
[White "Carretero Ortiz, Francisco"]
[Black "Crespo Ruiz, Manuel Maria"]
[Result "1/2-1/2"]
[ECO "B01"]
[WhiteElo "2241"]
[BlackElo "2026"]
[Annotator "NA"]
[PlyCount "118"]
[EventDate "2018.08.19"]
[EventType "team-tourn"]
[EventCountry "ESP"]
[SourceTitle "playchess.com"]
[Source "ChessBase"]
[SourceQuality "1"]
[TimeControl "900+5"]

1. e4 {[%emt 0:00:00]} d5 {[%emt 0:00:00]} 2. Nc3 {[%emt 0:00:01]} dxe4 {[%emt 0:00:00]} 3. Nxe4 {[%emt 0:00:01]} Qd5 {[%emt 0:00:01]} 4. Qf3 {[%emt 0:00:02]} c6 {[%emt 0:00:13]} 5. Nc3 {[%emt 0:00:10]} Qxf3 {[%emt 0:00:20]} 6. Nxf3 {[%emt 0:00:02]} Nf6 {[%emt 0:00:01]} 7. Bc4 {[%emt 0:00:04]} Bf5 {[%emt 0:00:03]} 8. O-O {[%emt 0:00:55]} e6 {[%emt 0:00:02]} 9. Re1 {[%emt 0:00:11]} Nbd7 {[%emt 0:00:08]} 10. Nd4 {[%emt 0:00:32]} Bg6 {[%emt 0:00:05]} 11. f4 {[%emt 0:00:14]} Bc5 {[%emt 0:00:47]} 12. Nce2 {[%emt 0:00:08]} Nb6 {[%emt 0:00:24]} 13. Bb3 {[%emt 0:00:26]} O-O-O {[%emt 0:00:17]} 14. c3 {[%emt 0:00:02]} Bd3 {[%emt 0:02:50]} 15. Kh1 {[%emt 0:02:23]} h5 {[%emt 0:01:38]} 16. Bc2 {[%emt 0:00:37]} Ne4 {[%emt 0:02:22]} 17. Bxd3 {[%emt 0:02:54]} Nf2+ {[%emt 0:00:02]} 18. Kg1 {[%emt 0:00:01]} Nxd3 {[%emt 0:00:01]} 19. Rf1 {[%emt 0:00:08]} Nc4 {[%emt 0:01:01]} 20. b4 {[%emt 0:05:37]} Bb6 {[%emt 0:00:16]} 21. a4 {[%emt 0:00:23]} Nxc1 {[%emt 0:00:09]} 22. Rfxc1 {[%emt 0:00:21]} Nxd2 {[%emt 0:00:03]} 23. a5 {[%emt 0:00:14]} Bxd4+ {[%emt 0:00:37]} 24. Nxd4 {[%emt 0:00:03]} Rxd4 {[%emt 0:00:03]} 25. cxd4 {[%emt 0:00:02]} Nb3 {[%emt 0:00:02]} 26. Rcb1 {[%emt 0:00:06]} Nxa1 27. Rxa1 {[%emt 0:00:01]} Rd8 {[%emt 0:00:08]} 28. Rd1 {[%emt 0:00:03]} Rd5 {[%emt 0:00:02]} 29. Kf2 {[%emt 0:00:04]} Kc7 {[%emt 0:00:07]} 30. Ke3 {[%emt 0:00:01]} Kd6 {[%emt 0:00:24]} 31. Kd3 {[%emt 0:00:30]} g5 {[%emt 0:00:34]} 32. fxg5 {[%emt 0:00:19]} Rxg5 {[%emt 0:00:02]} 33. g3 {[%emt 0:00:01]} f6 {[%emt 0:00:59]} 34. Rf1 {[%emt 0:00:03]} Rg6 {[%emt 0:01:39]} 35. Ke4 {[%emt 0:00:20]} Rg4+ {[%emt 0:00:10]} 36. Ke3 {[%emt 0:00:19]} f5 {[%emt 0:00:14]} 37. Rf2 {[%emt 0:00:39]} Re4+ {[%emt 0:00:18]} 38. Kd3 {[%emt 0:00:02]} Kd5 {[%emt 0:00:01]} 39. Rf4 {[%emt 0:00:03]} b6 {[%emt 0:01:59]} 40. axb6 {[%emt 0:00:04]} axb6 {[%emt 0:00:01]} 41. Rxe4 {[%emt 0:00:05]} fxe4+ 42. Ke3 e5 {[%emt 0:00:18]} 43. dxe5 {[%emt 0:00:07]} Kxe5 {[%emt 0:00:01]} 44. h3 {[%emt 0:00:04]} c5 {[%emt 0:00:07]} 45. bxc5 {[%emt 0:00:01]} bxc5 {[%emt 0:00:01]} 46. g4 {[%emt 0:00:04]} hxg4 {[%emt 0:00:04]} 47. hxg4 {[%emt 0:00:00]} c4 {[%emt 0:00:04]} 48. g5 {[%emt 0:00:01]} c3 {[%emt 0:00:12]} 49. g6 {[%emt 0:00:06]} c2 {[%emt 0:00:02]} 50. Kd2 {[%emt 0:00:02]} Kf6 {[%emt 0:00:06]} 51. Kxc2 {[%emt 0:00:08]} Kxg6 {[%emt 0:00:02]} 52. Kd2 {[%emt 0:00:01]} Kf5 {[%emt 0:00:02]} 53. Ke3 {[%emt 0:00:02]} Ke5 {[%emt 0:00:01]} 54. Ke2 {[%emt 0:00:01]} Kd4 {[%emt 0:00:01]} 55. Kd2 {[%emt 0:00:01]} e3+ {[%emt 0:00:01]} 56. Ke2 {[%emt 0:00:00]} Ke4 {[%emt 0:00:01]} 57. Ke1 {[%emt 0:00:02]} Kf3 {[%emt 0:00:01]} 58. Kf1 {[%emt 0:00:00]} e2+ {[%emt 0:00:01]} 59. Ke1 {[%emt 0:00:01]} Ke3 {[%emt 0:00:38]} 1/2-1/2